{"text_format":"1","workbook":"xlsx","n_sheets":7,"sheets":["Painel","Produtos","Veículos","Áreas","Depósitos","Centros","Modelo"],"not_rendered":{"charts":2,"images":3,"macros":1,"external_links":0,"defined_names":71,"comments":0,"pivot_tables":0},"unopened":[],"bounds":{"document_bytes":16777216,"sheet_cells":100000,"rows_first":2000,"rows_last":500,"rows_between":2000,"halvings":0,"cell_chars":16384,"cell_head_chars":4096},"cells_cut":0,"cells_raw":0,"read":"whole","date_system":"1900"}

{"sheet":"Painel","index":0,"n_rows":0,"n_cols":0,"rows_kept":0,"cut":false,"hidden":false,"merged":[]}

{"sheet":"Produtos","index":1,"n_rows":6,"n_cols":8,"rows_kept":6,"cut":false,"hidden":false,"merged":[]}
[null,"Código","Descrição","Número de afetados atendidos ao dia","Volume (L)","Massa (Kg)","Custo de Estoque\n(R$/unidade)","Custo de Demanda Insatifeita (R$/Unidade)"]
[null,"P0001","Água 15L",1,15,15,1.875,75]
[null,"P0002","Kit Alimentação",5,30,23,21.524999999999999,861]
[null,"P0003","Kit Médico",90,11,14,21.3,852]
[null,"P0004","Kit Higiene Pessoal",1,10,3,6.7575000000000003,270.3]
[null,"P0005","Kit Higiene Doméstica",5,16,7,15.067500000000001,602.70000000000005]

{"sheet":"Veículos","index":2,"n_rows":4,"n_cols":6,"rows_kept":4,"cut":false,"hidden":false,"merged":[]}
[null,"Código","Tipo","Capacidade (L)","Capacidade (Kg)","Custo de Operação (R$/Km)"]
[null,"V001","Caminhão",30000,6000,1.248]
[null,"V002","Barco",3000,600,2.1666666666666701]
[null,"V003","Helicóptero",115000,2250,1.3230769230769199]

{"sheet":"Áreas","index":3,"n_rows":8,"n_cols":4,"rows_kept":8,"cut":false,"hidden":false,"merged":[]}
[null,"Código","Endereço","Número médio de afetados/dia"]
[null,"ARE","Areal, RJ",7000]
[null,"BJD","Bom Jardim, RJ",12380]
[null,"NFR","Nova Friburgo, RJ",180000]
[null,"PTP","Petropolis, RJ",19000]
[null,"SJV","Sao Jose do Vale do Rio Preto, RJ",20682]
[null,"SMD","Sumidouro, RJ",15000]
[null,"TRS","Teresopolis, RJ",50500]

{"sheet":"Depósitos","index":4,"n_rows":7,"n_cols":4,"rows_kept":7,"cut":false,"hidden":false,"merged":[]}
[null,"Código","Descrição","Endereço"]
[null,"D001","Igreja Santo Antonio / Cruz Vermelha","Rua Oliveira Botelho, 620, Teresopolis, RJ"]
[null,"D002","Galpao do Meudon","Rua Tenente Luiz Meirelles, 3377, Teresopolis, RJ"]
[null,"D003","Loja Maconica Tres Luz","Rua Padre Tintorio, 45, Teresopolis, RJ"]
[null,"D004","Ginasio Poliesportivo Pedro Jahara","Rua Tenente Luiz Meirelles, 211, Teresopolis, RJ"]
[null,"D005","15 Grupamento de Bombeiros Militar"," Avenida Barao do Rio Branco,  1957, Petropolis, RJ"]
[null,"D006","Sede da Cruz Vermelha de Nova Friburgo","Praca Getulio Vargas, 92, Nova Friburgo, RJ"]

{"sheet":"Centros","index":5,"n_rows":41,"n_cols":6,"rows_kept":41,"cut":false,"hidden":false,"merged":[]}
[null,"Código","Descrição","Endereço","Capacidade  (L)","Custo Operacional (R$/dia)"]
[null,"C00001","1 – Igreja Wesleyana","Estrada Philuvio Cerqueira, 2700, Petropolis, RJ",787441,{"$f":"IF(E2<=5000000,300,IF(AND(E2>5000000, E2<=10000000),600, 1000))","v":300}]
[null,"C00002","2 – Secretaria do Trabalho, Assistência Social e Cidadania","Rua Aureliano Coutinho, 81, Petropolis, RJ",1357235,{"$f":"IF(E3<=5000000,300,IF(AND(E3>5000000, E3<=10000000),600, 1000))","v":300}]
[null,"C00003","3 – CIEP (Centro Integrado de Educação Pública) de Itaipava","Estrada Uniao e Industria, 11.860, Petropolis, RJ",9589769,600]
[null,"C00004","4 – 26 Batalhão da Polícia Militar de Petropolis","Rua Domingos Silverio, s/n, Petropolis, RJ",26674126,1000]
[null,"C00005","5 – SESC Quitandinha","Avenida Joaquim Rolla, 2, Petropolis, RJ",11072139,1000]
[null,"C00006","6 – SESI Petropolis","Avenida Barao do Rio Branco, 2564, Petropolis, RJ",7946294,600]
[null,"C00007","7 – SENAI Petropolis","Rua Bingen, 130, Petropolis, RJ",9190465,600]
[null,"C00008","8 – Fundação Leão XIII","Rua General Osorio, 12, Petropolis, RJ",9576291,600]
[null,"C00009","9 – Centro Integrado de Educação Pública (CIEP)","Estrada Uniao e Industria, 2822, Petropolis, RJ",7067686,600]
[null,"C00010","10 – Sede da Cruz Vermelha de Petropolis","Rua Carlos Gomes, 6, Petropolis, RJ",20236980,1000]
[null,"C00011","11 – Sede Cruz Vermelha Teresopolis","Rua Carmela Dutra, 661, Teresopolis, RJ",24793049,1000]
[null,"C00012","12 – Sede da Secretaria da Saúde","Avenida Feliciano Sodre, 675, Teresopolis, RJ",9766086,600]
[null,"C00013","13 – Secretaria do Desenvolvimento Social","Avenida Alberto Torres,111, Teresopolis, RJ",1221844,300]
[null,"C00014","14 – 16 Grupamento de Bombeiro Militar","Rua Guandu, 280, Teresopolis, RJ",19217848,1000]
[null,"C00015","15 – SESC Teresopolis","Avenida Delfim Moreira, 749, Teresopolis, RJ",15003027,1000]
[null,"C00016","16 – Igreja Missionária do Amor em Cristo","Avenida Delfim Moreira, 2020, Teresopolis, RJ",763603,300]
[null,"C00017","17 – Igreja Batista Dedo de Deus","Rua Acre, 241, Teresopolis, RJ",926351,300]
[null,"C00018","18 – Igreja Metodista","Rua Manoel Dias, Teresopolis, RJ",640500,300]
[null,"C00019","19 – Pousada Saint German","Rua Sergipe, 650, Teresopolis, RJ",7035451,600]
[null,"C00020","20 – Associação Promoção Social Lopes Vincunha","Rua Sebastiao Lacerda, 1393, Teresopolis, RJ",14219930,1000]
[null,"C00021","21 – Igreja Batista em Barra do Imbuí","Rua Doutor Oliveira, 314, Teresopolis, RJ",601837,300]
[null,"C00022","22 – Igreja de Cristo","Rua Manoel Dias, 84, Teresopolis, RJ",587034,300]
[null,"C00023","23 – Igreja Serra dos Órgãos","Rua Luiz Noguet Jr, 480, Teresopolis, RJ",1130393,300]
[null,"C00024","24 – Igreja de Deus no Brasil","Av. Presidente Roosevest, 56, Teresopolis, RJ",1033680,300]
[null,"C00025","25 – Igreja Cristã Evangélica","Av. Almirante Lucio Meira, 171, Teresopolis, RJ",544800,300]
[null,"C00026","26 – Igreja Mornons","Rua Manoel Jose Lebrao, Teresopolis, RJ",1222697,300]
[null,"C00027","27 – Igreja Metodista Central","Rua Nilza Chiapeta fadigas, 274, Teresopolis, RJ",1247341,300]
[null,"C00028","28 – Associação Nova Vida","Estrada Teresopolis Friburgo, 5, Campanha, Teresopolis, RJ",994547,300]
[null,"C00029","29 – Assistência social de Nova Friburgo","Rua Augusto Spinelli, 160, Nova Friburgo, RJ",13907801,1000]
[null,"C00030","30 – Hospital Municipal Raul Sertã","Rua General Osorio, 324, Nova Friburgo, RJ",14014608,1000]
[null,"C00031","31 – Pólo da Fundação da Infância e Adolescência (FIA)","Avenida Julio Antonio Thuller, 480 (28620-000), Nova Friburgo, RJ",1021026,300]
[null,"C00032","32 – 6 Grupamento de Bombeiros Militar","Praca da Bandeira, 1027, Nova Friburgo, RJ",21603101,1000]
[null,"C00033","33 – Prefeitura de Nova Friburgo","Avenida Alberto Braune, 225, Nova Friburgo, RJ",563427,300]
[null,"C00034","34 – Batalhão da Polícia Militar","Rua Venancio Pereira Veloso, 78, Bom Jardim, RJ",17992467,1000]
[null,"C00035","35 – Delegacia Policial de Sumidouro","Rua Faria Oliveira , n 51, Sumidouro, RJ",11020328,1000]
[null,"C00036","36 – Defesa Civil de Santa Maria Madalena","Rua Vereador Dilson Batista Soares, 45 ,  Santa Maria Madalena, RJ",20302282,1000]
[null,"C00037","37 – Delegacia Policial de Trajano de Moraes ","Rua Ruy Barbosa, s/n,  Trajano de Moraes, RJ",9242322,600]
[null,"C00038","38 – Delegacia Policial de Sapucaia","Rua 15 de Novembro, 40,  Sapucaia, RJ",6964587,600]
[null,"C00039","39-Delegacia Policial de Sao Sebastião do Alto","Rua Cel Francisco Salustiano Pinto, 210, Sao Sebastiao do Alto, RJ",15198990,1000]
[null,"C00040","40-Prefeitura de Sao Sebastião do Alto","Rua Dr. Julio Vieitas, 88, Sao Sebastiao do Alto, RJ",991795,300]

{"sheet":"Modelo","index":6,"n_rows":0,"n_cols":0,"rows_kept":0,"cut":false,"hidden":false,"merged":[]}